{"text_format":"1","workbook":"xlsx","n_sheets":26,"sheets":["ВПА","ВПА_порука","ВПА_застава","ВПА_Застава_СТ","ППА","ППА_порука","ППА_застава","Методологічні рекомендації","queries","deal","coll1","legalwork","deal_doc","coll2","coll3","coll4","coll5","coll6","coll7","guar1","guar2","guar3","guar4","guar5","фото","журнал торгів"],"not_rendered":{"charts":0,"images":3,"macros":1,"external_links":0,"defined_names":15,"comments":0,"pivot_tables":0},"unopened":[],"bounds":{"document_bytes":16777216,"sheet_cells":100000,"rows_first":2000,"rows_last":500,"rows_between":2000,"halvings":0,"cell_chars":16384,"cell_head_chars":4096},"cells_cut":0,"cells_raw":0,"read":"whole","date_system":"1900"}

{"sheet":"ВПА","index":0,"n_rows":44,"n_cols":8,"rows_kept":44,"cut":false,"hidden":false,"merged":[[27,6,27,7],[30,3,30,4],[41,7,43,7],[41,6,43,6],[31,3,37,4],[31,7,32,7],[31,6,32,6],[37,0,37,1],[35,6,35,7],[0,0,0,7],[28,0,28,1],[7,6,7,7],[4,6,4,7],[19,3,20,3],[7,4,8,4],[7,3,8,3],[4,0,4,1],[4,3,4,4],[14,3,14,4],[20,0,20,1],[25,3,25,4],[19,4,20,4],[8,6,21,7]]}
["Внутрішній паспорт активу (права вимоги фізичних осіб – індивідуальні позичальники)"]
[]
["Дата формування","2017-10-01",null,"Відповідальна особа","Невторим І.А., начальник центру кредитної адміністрації, тел. (044) 593 00 09",null,"Дата і номер протоколу МКУА"]
[]
["1. Інформація про кредит ",null,null,"5. Інформація про позичальника",null,null,"8. Претензійно-позовна робота та примусове стягнення"]
["Назва банку","ПУАТ «ФІДОБАНК»",null,"ПІБ позичальника","Косенко Владислав Юрійович",null,"Дата закінчення строку позовної давності","2031-02-21"]
["МФО банку","300175",null,"ІПН позичальника",3056912537,null,"Поточна стадія претензійно-позовної роботи*","Справа у виконавчій службі"]
["Номер кредитного договору","254-в/43",null,"Адреса реєстрації*","обл. Полтавська, р-н _, м. Лубни, вул. Комсомольська, буд. 44, кв. 11",null,"Детальний опис претензійно-позовної роботи"]
["Дата отримання кредиту","2008-02-22",null,null,null,null,"рішення набрало законної сили"]
["Дата погашення кредиту","2028-02-21",null,"Адреса фактичного проживання*","обл. Полтавська, р-н _, м. Лубни, вул. Комсомольська, буд. 44, кв. 11"]
["Валюта кредиту",980,null,"Місце роботи та посада"]
["Сума видачі (у валюті кредиту)",18800,null,"Доходи за останній рік, грн"]
["Ставка відсотків",13,null,"Наявність інших активів"]
["Ставка комісій"]
["Тип кредитного продукту*","Заставний",null,"6. Інформація про поручителя"]
["Цільове призначення*","Споживчий",null,"Наявність поручителя (так / ні)","Ні"]
["Регіон видачі (область)","Полтавська область",null,"Вид поруки (майнова / фінансова)",""]
["Зона АТО або Крим","Інше",null,"ПІБ поручителя",""]
["Перебуває в заставі НБУ (так / ні)","Ні",null,"ІПН поручителя",""]
[null,null,null,"Адреса реєстрації*",""]
["2. Залишок заборгованості на дату формування"]
["Загальний залишок заборгованості (без штрафів та пені), грн ",300100.93,null,"Адреса фактичного проживання*",""]
["Залишок по тілу кредиту, грн",277127.07,null,"Фінансово-майновий стан*","",null,"Висновок юридичної служби банку із аналізом поточного стану та перспектив судового стягнення","низький"]
["Залишок по процентам, грн",22973.86,null,"Характер зв`язку з боржником*","",null,"Готовність позичальника до позасудового врегулювання (умови)","ні,  не готовий"]
["Залишок по комісіям, грн",0,null,null,null,null,"Робота з позичальником внутрішньою колекторською службою ","так"]
["Залишок по пеням і штрафам, грн",0,null,"7. Інформація про заставу",null,null,"Робота з позичальником зовнішньою колекторською службою","відсутня"]
["Залишок заборгованості у валюті кредиту (без штрафів та пені)",300100.93,null,"Наявність застави (так / ні)","Так"]
[null,null,null,"Діє мораторій на стягнення майна (так / ні)","Ні",null,"9. Комплектність кредитної справи (на дату винесення на Комітет)"]
["3. Оціночна та ліквідаційна вартість кредиту",null,null,"Номер договору застави","254-в/43-ІД-6",null,"Наявність оригіналу кредитного договору*","так"]
["Назва компаніі оцінщика","ТОВ «Верітас Проперті Менеджмент»",null,"Тип застави*","квартира",null,"Наявність оригіналу договору застави*","так"]
["Оціночна вартість кредиту, грн*",62862.79,null,"Детальний опис застави*",null,null,"Наявність оригіналу договору поруки*"]
["Дата оцінки вартості кредиту*","2016-11-01",null,"Квартира; Полтавская обл., м. Лубни,  проул. Комсомольской дом.4 (30.3 кв. м.)",null,null,"Наявність згоди подружжя на отримання кредиту"]
["Залишок заборгованості на дату оцінки (тіло, відсотки, комісії), грн",291363.08]
["Залишок заборгованості на дату формування ліквідаційної маси, грн",291363.08,null,null,null,null,"Наявність оригіналу заяви на отримання кредиту","так"]
["Ліквідаційна вартість кредиту, грн*",62862.79]
["Дата формування ліквід. маси","2016-11-01",null,null,null,null,"10. Інша інформація"]
[null,null,null,null,null,null,"Смерть боржника (так / ні)","ні"]
["4. Платіжна історія",null,null,null,null,null,"Реструктуризації кредиту, списання частини заборгованості (умови) ","22.12.2015- зміна валюти кредиту з дол США на гривню"]
["Дата останнього платежу","2016-04-25",null,"Застава реалізована (так / ні)","ні",null,"Наявність дозволу позичальника на розкриття інформації ","ні"]
["Сума останнього платежу, грн",2,null,"Заставу прийнято на баланс банку (так / ні)","ні",null,"Ознаки шахрайства по кредиту (так / ні, деталі)","ні"]
["Сума платежів за поточний рік, грн",0,null,"Вартість застави на момент видачі кредиту, грн",105545,null,"Відкрито кримінальне провадження (деталі)","ні"]
["Сума платежів за минулий рік, грн",4.83,null,"Дата останньої перевірки предмета застави*","2015-05-26",null,"Інша інформація та примітки*","22.12.2015 р. проведено реструктуризацію шляхом зміни валюти кредитування з доларів США на гривню. Умовами реструктуризації передбачено: \n- поділ нової заборгованості у гривні на дві частини – Транш 1 з щомісячним погашенням заборгованості та відсотковою ставкою 13 та Транш 2 з погашенням основної заборгованості в кінці терміну дії кредитного договору та відсотковою ставкою 0,000001;\n- прощення Траншу 2 при умові повного погашення заборгованості за Траншем 1;\n- залишок станом на 01.10.2017: \nтранш 1 - 138557,53грн.; транш 2 - 138569,54грн.    \n2. Реструктуризацію проведено на умовах публічної оферти без підписання відповідного договору між позичальником та банком.\n"]
["Сума платежів за весь період, грн",null,null,"Дата останньої оцінки","2016-02-01"]
["Кількість днів прострочки",517,null,"Оцінка вартості застави, грн",120109]

{"sheet":"ВПА_порука","index":1,"n_rows":9,"n_cols":6,"rows_kept":9,"cut":false,"hidden":false,"merged":[]}
["6. Інформація про поручителя","Поручитель 1","Поручитель 2","Поручитель 3","Поручитель …","Поручитель n"]
["Наявність поручителя (так / ні)","Ні","Ні","Ні","Ні","Ні"]
["Вид поруки (майнова / фінансова)","","","","",""]
["ПІБ поручителя","","","","",""]
["ІПН поручителя","","","","",""]
["Адреса реєстрації*","","","","",""]
["Адреса фактичного проживання*","","","","",""]
["Фінансово-майновий стан*","","","","",""]
["Характер зв`язку з боржником*","","","","",""]

{"sheet":"ВПА_застава","index":2,"n_rows":12,"n_cols":8,"rows_kept":12,"cut":false,"hidden":false,"merged":[]}
["7. Інформація про заставу","Застава 1","Застава 2","Застава 3","Застава 4","Застава 5","Застав 6","Застава 7"]
["Наявність застави (так / ні)","Так","Ні","Ні","Ні","Ні","Ні","Ні"]
["Діє закон про мораторій на стягнення майна (так / ні)","Ні","","","","","",""]
["Номер договору застави","254-в/43-ІД-6","","","","","",""]
["Тип застави*","квартира","","","","","",""]
["Детальний опис застави*","Квартира; Полтавская обл., м. Лубни,  проул. Комсомольской дом.4 (30.3 кв. м.)","","","","","",""]
["Застава реалізована (так / ні)","ні"]
["Заставу прийнято на баланс банку (так / ні)","ні"]
["Вартість застави на момент видачі кредиту, грн",105545]
["Дата останньої перевірки предмета застави*","2015-05-26","","","","","",""]
["Дата останньої оцінки","2016-02-01","","","","","",""]
["Оцінка вартості застави, грн",120109,"","","","","",""]

{"sheet":"ВПА_Застава_СТ","index":3,"n_rows":124,"n_cols":2,"rows_kept":124,"cut":false,"hidden":true,"merged":[[111,0,117,1],[42,0,42,1],[47,0,47,1],[48,0,54,1],[63,0,63,1],[68,0,68,1],[69,0,75,1],[84,0,84,1],[89,0,89,1],[90,0,96,1],[105,0,105,1],[110,0,110,1],[27,0,33,1],[0,0,0,1],[5,0,5,1],[6,0,12,1],[21,0,21,1],[26,0,26,1]]}
["7. Інформація про заставу***"]
["Наявність застави (так / ні)",{"$f":"deal!$AA$2","v":"так"}]
["Діє мораторій на стягнення майна (так / ні)",{"$f":"coll1!$C$2","v":"Ні"}]
["Номер договору застави",{"$f":"coll1!$D$2","v":3296627}]
["Тип застави*",{"$f":"coll1!$E$2","v":"Нерухоме майно, що належить до житлового фонду"}]
["Детальний опис застави*"]
[{"$f":"coll1!$F$2","v":"Квартира; Полтавская обл., м. Лубни,  проул. Комсомольской дом.4 (30.3 кв. м.)"}]
[]
[]
[]
[]
[]
[]
["Застава реалізована (так / ні)"]
["Заставу прийнято на баланс банку (так / ні)"]
["Вартість застави на момент видачі кредиту, грн"]
["Дата останньої перевірки предмета застави*",{"$f":"IF(coll1!$G$2=\"\",\"\",coll1!$G$2)","v":""}]
["Дата останньої оцінки",{"$f":"IF(coll1!$H$2=\"\",\"\",coll1!$H$2)","v":"2016-02-01"}]
["Оцінка вартості застави, грн",{"$f":"coll1!$I$2","v":120109}]
[]
[]
["7. Інформація про заставу***"]
["Наявність застави (так / ні)",{"$f":"deal!$AA$2","v":"так"}]
["Діє мораторій на стягнення майна (так / ні)",{"$f":"IF(coll1!$C$3=\"\",\"\",coll1!$C$3)","v":""}]
["Номер договору застави",{"$f":"IF(coll1!$D$3=\"\",\"\",coll1!$D$3)","v":""}]
["Тип застави*",{"$f":"IF(coll1!$E$3=\"\",\"\",coll1!$E$3)","v":""}]
["Детальний опис застави*"]
[{"$f":"IF(coll1!$F$3=\"\",\"\",coll1!$F$3)","v":""}]
[]
[]
[]
[]
[]
[]
["Застава реалізована (так / ні)"]
["Заставу прийнято на баланс банку (так / ні)"]
["Вартість застави на момент видачі кредиту, грн"]
["Дата останньої перевірки предмета застави*",{"$f":"IF(coll1!$G$3=\"\",\"\",coll1!$G$3)","v":""}]
["Дата останньої оцінки",{"$f":"IF(coll1!$H$3=\"\",\"\",coll1!$H$3)","v":""}]
["Оцінка вартості застави, грн",{"$f":"IF(coll1!$I$3=\"\",\"\",coll1!$I$3)","v":""}]
[]
[]
["7. Інформація про заставу***"]
["Наявність застави (так / ні)",{"$f":"deal!$AA$2","v":"так"}]
["Діє мораторій на стягнення майна (так / ні)",{"$f":"IF(coll1!$C$4=\"\",\"\",coll1!$C$4)","v":""}]
["Номер договору застави",{"$f":"IF(coll1!$D$4=\"\",\"\",coll1!$D$4)","v":""}]
["Тип застави*",{"$f":"IF(coll1!$E$4=\"\",\"\",coll1!$E$4)","v":""}]
["Детальний опис застави*"]
[{"$f":"IF(coll1!$F$4=\"\",\"\",coll1!$F$4)","v":""}]
[]
[]
[]
[]
[]
[]
["Застава реалізована (так / ні)"]
["Заставу прийнято на баланс банку (так / ні)"]
["Вартість застави на момент видачі кредиту, грн"]
["Дата останньої перевірки предмета застави*",{"$f":"IF(coll1!$G$4=\"\",\"\",coll1!$G$4)","v":""}]
["Дата останньої оцінки",{"$f":"IF(coll1!$H$4=\"\",\"\",coll1!$H$4)","v":""}]
["Оцінка вартості застави, грн",{"$f":"IF(coll1!$I$4=\"\",\"\",coll1!$I$4)","v":""}]
[]
[]
["7. Інформація про заставу***"]
["Наявність застави (так / ні)",{"$f":"deal!$AA$2","v":"так"}]
["Діє мораторій на стягнення майна (так / ні)",{"$f":"IF(coll1!$C$5=\"\",\"\",coll1!$C$5)","v":""}]
["Номер договору застави",{"$f":"IF(coll1!$D$5=\"\",\"\",coll1!$D$5)","v":""}]
["Тип застави*",{"$f":"IF(coll1!$E$5=\"\",\"\",coll1!$E$5)","v":""}]
["Детальний опис застави*"]
[{"$f":"IF(coll1!$F$5=\"\",\"\",coll1!$F$5)","v":""}]
[]
[]
[]
[]
[]
[]
["Застава реалізована (так / ні)"]
["Заставу прийнято на баланс банку (так / ні)"]
["Вартість застави на момент видачі кредиту, грн"]
["Дата останньої перевірки предмета застави*",{"$f":"IF(coll1!$G$5=\"\",\"\",coll1!$G$5)","v":""}]
["Дата останньої оцінки",{"$f":"IF(coll1!$H$5=\"\",\"\",coll1!$H$5)","v":""}]
["Оцінка вартості застави, грн",{"$f":"IF(coll1!$I$5=\"\",\"\",coll1!$I$5)","v":""}]
[]
[]
["7. Інформація про заставу***"]
["Наявність застави (так / ні)",{"$f":"deal!$AA$2","v":"так"}]
["Діє мораторій на стягнення майна (так / ні)",{"$f":"IF(coll1!$C$6=\"\",\"\",coll1!$C$6)","v":""}]
["Номер договору застави",{"$f":"IF(coll1!$D$6=\"\",\"\",coll1!$D$6)","v":""}]
["Тип застави*",{"$f":"IF(coll1!$E$6=\"\",\"\",coll1!$E$6)","v":""}]
["Детальний опис застави*"]
[{"$f":"IF(coll1!$F$6=\"\",\"\",coll1!$F$6)","v":""}]
[]
[]
[]
[]
[]
[]
["Застава реалізована (так / ні)"]
["Заставу прийнято на баланс банку (так / ні)"]
["Вартість застави на момент видачі кредиту, грн"]
["Дата останньої перевірки предмета застави*",{"$f":"IF(coll1!$G$6=\"\",\"\",coll1!$G$6)","v":""}]
["Дата останньої оцінки",{"$f":"IF(coll1!$H$6=\"\",\"\",coll1!$H$6)","v":""}]
["Оцінка вартості застави, грн",{"$f":"IF(coll1!$I$6=\"\",\"\",coll1!$I$6)","v":""}]
[]
[]
["7. Інформація про заставу***"]
["Наявність застави (так / ні)",{"$f":"deal!$AA$2","v":"так"}]
["Діє мораторій на стягнення майна (так / ні)",{"$f":"IF(coll1!$C$7=\"\",\"\",coll1!$C$7)","v":""}]
["Номер договору застави",{"$f":"IF(coll1!$D$7=\"\",\"\",coll1!$D$7)","v":""}]
["Тип застави*",{"$f":"IF(coll1!$E$7=\"\",\"\",coll1!$E$7)","v":""}]
["Детальний опис застави*"]
[{"$f":"IF(coll1!$F$7=\"\",\"\",coll1!$F$7)","v":""}]
[]
[]
[]
[]
[]
[]
["Застава реалізована (так / ні)"]
["Заставу прийнято на баланс банку (так / ні)"]
["Вартість застави на момент видачі кредиту, грн"]
["Дата останньої перевірки предмета застави*",{"$f":"IF(coll1!$G$7=\"\",\"\",coll1!$G$7)","v":""}]
["Дата останньої оцінки",{"$f":"IF(coll1!$H$7=\"\",\"\",coll1!$H$7)","v":""}]
["Оцінка вартості застави, грн",{"$f":"IF(coll1!$I$7=\"\",\"\",coll1!$I$7)","v":""}]

{"sheet":"ППА","index":4,"n_rows":27,"n_cols":8,"rows_kept":27,"cut":false,"hidden":false,"merged":[[0,0,0,7],[4,0,4,1],[4,6,4,7],[6,6,6,7],[7,6,21,7],[19,0,19,1],[4,3,4,4],[10,3,10,4],[6,4,7,4],[6,3,7,3],[11,3,15,4],[22,6,22,7],[23,6,23,7],[19,3,19,4],[25,3,26,3],[25,4,26,4],[23,3,23,4]]}
["Публічний паспорт активу (права вимоги фізичних осіб – індивідуальні позичальники)"]
[]
["Дата формування",{"$f":"ВПА!B3","v":"2017-10-01"}]
[]
["1. Інформація про кредит ",null,null,"3. Інформація про заставу",null,null,"6. Претензійно-позовна робота та примусове стягнення"]
["Назва банку",{"$f":"IF(ВПА!$B$6=\"\",\"\",ВПА!$B$6)","v":"ПУАТ «ФІДОБАНК»"},null,"Наявність застави (так / ні)",{"$f":"IF(ВПА!$E$27=\"\",\"\",ВПА!$E$27)","v":"Так"},null,"Поточна стадія претензійно-позовної роботи",{"$f":"IF(ВПА!$H$7=\"\",\"\",ВПА!$H$7)","v":"Справа у виконавчій службі"}]
["МФО банку",{"$f":"IF(ВПА!$B$7=\"\",\"\",ВПА!$B$7)","v":"300175"},null,"Діє закон про мораторій на стягнення майна (так / ні)",{"$f":"IF(ВПА!$E$28=\"\",\"\",ВПА!$E$28)","v":"Ні"},null,"Опис претензійно-позовної роботи"]
["Номер кредитного договору",{"$f":"IF(ВПА!$B$8=\"\",\"\",ВПА!$B$8)","v":"254-в/43"},null,null,null,null,"Детальну інформацію буде надано після підписання договору про нерозголошення конфіденційної інформації"]
["Дата отримання кредиту",{"$f":"IF(ВПА!$B$9=\"\",\"\",ВПА!$B$9)","v":"2008-02-22"},null,"Номер договору застави",{"$f":"IF(ВПА!$E$29=\"\",\"\",ВПА!$E$29)","v":"254-в/43-ІД-6"}]
["Дата погашення кредиту",{"$f":"IF(ВПА!$B$10=\"\",\"\",ВПА!$B$10)","v":"2028-02-21"},null,"Тип застави",{"$f":"IF(ВПА!$E$30=\"\",\"\",ВПА!$E$30)","v":"квартира"}]
["Валюта кредиту",{"$f":"IF(ВПА!$B$11=\"\",\"\",ВПА!$B$11)","v":980},null,"Опис застави"]
["Сума видачі (у валюті кредиту)",{"$f":"IF(ВПА!$B$12=\"\",\"\",ВПА!$B$12)","v":18800},null,"Квартира; Полтавская обл., м. Лубни,  проул. Комсомольской дом.4 (30.3 кв. м.)"]
["Ставка відсотків",{"$f":"IF(ВПА!$B$13=\"\",\"\",ВПА!$B$13)","v":13}]
["Ставка комісій",{"$f":"IF(ВПА!$B$14=\"\",\"\",ВПА!$B$14)","v":""}]
["Тип кредитного продукту",{"$f":"IF(ВПА!$B$15=\"\",\"\",ВПА!$B$15)","v":"Заставний"}]
["Цільове призначення",{"$f":"IF(ВПА!$B$16=\"\",\"\",ВПА!$B$16)","v":"Споживчий"}]
["Регіон видачі (область)",{"$f":"IF(ВПА!$B$17=\"\",\"\",ВПА!$B$17)","v":"Полтавська область"},null,"Застава реалізована (так / ні)",{"$f":"IF(ВПА!$E$39=\"\",\"Н/Д\",ВПА!$E$39)","v":"ні"}]
["Зона АТО або Крим",{"$f":"IF(ВПА!$B$18=\"\",\"\",ВПА!$B$18)","v":"Інше"},null,"Вартість застави на момент видачі кредиту, грн",{"$f":"IF(ВПА!$E$41=\"\",\"Н/Д\",ВПА!$E$41)","v":105545}]
[]
["2. Залишок заборгованості на дату формування",null,null,"4. Інформація про поручителя"]
["Загальний залишок заборгованості (без штрафів та пені), грн ",{"$f":"IF(ВПА!$B$22=\"\",\"\",ВПА!$B$22)","v":300100.93},null,"Наявність поручителя (так / ні)",{"$f":"IF(ВПА!$E$16=\"\",\"\",ВПА!$E$16)","v":"Ні"}]
["Залишок по тілу кредиту, грн",{"$f":"IF(ВПА!$B$23=\"\",\"\",ВПА!$B$23)","v":277127.07},null,"Вид поруки (майнова / фінансова)",{"$f":"IF(ВПА!$E$17=\"\",\"Н/Д\",ВПА!$E$17)","v":"Н/Д"}]
["Залишок по процентам, грн",{"$f":"IF(ВПА!$B$24=\"\",\"\",ВПА!$B$24)","v":22973.86}]
["Залишок по комісіям, грн",{"$f":"IF(ВПА!$B$25=\"\",\"\",ВПА!$B$25)","v":0},null,"5. Додаткова інформація",null,null,"7. Оцінка вартості кредиту"]
["Залишок по пеням і штрафам, грн",{"$f":"IF(ВПА!$B$26=\"\",\"\",ВПА!$B$26)","v":0},null,"Смерть боржника (так / ні)",{"$f":"IF(ВПА!$H$37=\"\",\"\",ВПА!$H$37)","v":"ні"},null,"Назва компанії оцінщика",{"$f":"IF(ВПА!$B$30=\"\",\"\",ВПА!$B$30)","v":"ТОВ «Верітас Проперті Менеджмент»"}]
["Залишок заборгованості у валюті кредиту (без штрафів та пені)",{"$f":"IF(ВПА!$B$27=\"\",\"\",ВПА!$B$27)","v":300100.93},null,"Інша інформація та примітки",null,null,"Дата оцінки вартості кредиту",{"$f":"IF(ВПА!$B$32=\"\",\"\",ВПА!$B$32)","v":"2016-11-01"}]
["Дата останнього платежу",{"$f":"IF(ВПА!$B$39=\"\",\"\",ВПА!$B$39)","v":"2016-04-25"},null,null,null,null,"Оціночна вартість кредиту, грн",{"$f":"IF(ВПА!$B$31=\"\",\"\",ВПА!$B$31)","v":62862.79}]

{"sheet":"ППА_порука","index":5,"n_rows":3,"n_cols":6,"rows_kept":3,"cut":false,"hidden":false,"merged":[]}
["4. Інформація про поручителя","Поручитель 1","Поручитель 2","Поручитель 3","Поручитель 4","Поручитель 5"]
["Наявність поручителя (так / ні)",{"$f":"IF(ВПА_порука!$B$2=\"\",\"Н/Д\",ВПА_порука!$B$2)","v":"Ні"},{"$f":"IF(ВПА_порука!$C$2=\"\",\"Н/Д\",ВПА_порука!$C$2)","v":"Ні"},{"$f":"IF(ВПА_порука!$D$2=\"\",\"Н/Д\",ВПА_порука!$D$2)","v":"Ні"},{"$f":"IF(ВПА_порука!$E$2=\"\",\"Н/Д\",ВПА_порука!$E$2)","v":"Ні"},{"$f":"IF(ВПА_порука!$F$2=\"\",\"Н/Д\",ВПА_порука!$F$2)","v":"Ні"}]
["Вид поруки (майнова / фінансова)",{"$f":"IF(ВПА_порука!$B$2=\"Ні\",\"\",IF(ВПА_порука!$B$3=\"\",\"Н/Д\",ВПА_порука!$B$3))","v":""},{"$f":"IF(ВПА_порука!$C$2=\"Ні\",\"\",IF(ВПА_порука!#REF!=\"\",\"Н/Д\",ВПА_порука!#REF!))","v":""},{"$f":"IF(ВПА_порука!$D$2=\"Ні\",\"\",IF(ВПА_порука!$D$3=\"\",\"Н/Д\",ВПА_порука!$D$3))","v":""},{"$f":"IF(ВПА_порука!$E$2=\"Ні\",\"\",IF(ВПА_порука!$E$3=\"\",\"Н/Д\",ВПА_порука!$E$3))","v":""},{"$f":"IF(ВПА_порука!$F$2=\"Ні\",\"\",IF(ВПА_порука!$F$3=\"\",\"Н/Д\",ВПА_порука!$F$3))","v":""}]

{"sheet":"ППА_застава","index":6,"n_rows":8,"n_cols":8,"rows_kept":8,"cut":false,"hidden":false,"merged":[]}
["3. Інформація про заставу","Застава 1","Застава 2","Застава 3","Застава 4","Застава 5","Застава 6","Застава 7"]
["Наявність застави (так / ні)",{"$f":"IF(ВПА_застава!$B$2=\"\",\"Н/Д\",ВПА_застава!$B$2)","v":"Так"},{"$f":"IF(ВПА_застава!$C$2=\"\",\"Н/Д\",ВПА_застава!$C$2)","v":"Ні"},{"$f":"IF(ВПА_застава!$D$2=\"\",\"Н/Д\",ВПА_застава!$D$2)","v":"Ні"},{"$f":"IF(ВПА_застава!$E$2=\"\",\"Н/Д\",ВПА_застава!$E$2)","v":"Ні"},{"$f":"IF(ВПА_застава!$F$2=\"\",\"Н/Д\",ВПА_застава!$F$2)","v":"Ні"},{"$f":"IF(ВПА_застава!$G$2=\"\",\"Н/Д\",ВПА_застава!$G$2)","v":"Ні"},{"$f":"IF(ВПА_застава!$H$2=\"\",\"Н/Д\",ВПА_застава!$H$2)","v":"Ні"}]
["Діє закон про мораторій на стягнення майна (так / ні)",{"$f":"IF(ВПА_застава!$B$3=\"\",\"\",ВПА_застава!$B$3)","v":"Ні"},{"$f":"IF(ВПА_застава!$C$3=\"\",\"\",ВПА_застава!$C$3)","v":""},{"$f":"IF(ВПА_застава!$D$3=\"\",\"\",ВПА_застава!$D$3)","v":""},{"$f":"IF(ВПА_застава!$E$3=\"\",\"\",ВПА_застава!$E$3)","v":""},{"$f":"IF(ВПА_застава!$F$3=\"\",\"\",ВПА_застава!$F$3)","v":""},{"$f":"IF(ВПА_застава!$G$3=\"\",\"\",ВПА_застава!$G$3)","v":""},{"$f":"IF(ВПА_застава!$H$3=\"\",\"\",ВПА_застава!$H$3)","v":""}]
["Номер договору застави",{"$f":"IF(ВПА_застава!$B$4=\"\",\"\",ВПА_застава!$B$4)","v":"254-в/43-ІД-6"},{"$f":"IF(ВПА_застава!$C$4=\"\",\"\",ВПА_застава!$C$4)","v":""},{"$f":"IF(ВПА_застава!$D$4=\"\",\"\",ВПА_застава!$D$4)","v":""},{"$f":"IF(ВПА_застава!$E$4=\"\",\"\",ВПА_застава!$E$4)","v":""},{"$f":"IF(ВПА_застава!$F$4=\"\",\"\",ВПА_застава!$F$4)","v":""},{"$f":"IF(ВПА_застава!$G$4=\"\",\"\",ВПА_застава!$G$4)","v":""},{"$f":"IF(ВПА_застава!$H$4=\"\",\"\",ВПА_застава!$H$4)","v":""}]
["Тип застави",{"$f":"IF(ВПА_застава!$B$5=\"\",\"\",ВПА_застава!$B$5)","v":"квартира"},{"$f":"IF(ВПА_застава!$C$5=\"\",\"\",ВПА_застава!$C$5)","v":""},{"$f":"IF(ВПА_застава!$D$5=\"\",\"\",ВПА_застава!$D$5)","v":""},{"$f":"IF(ВПА_застава!$E$5=\"\",\"\",ВПА_застава!$E$5)","v":""},{"$f":"IF(ВПА_застава!$F$5=\"\",\"\",ВПА_застава!$F$5)","v":""},{"$f":"IF(ВПА_застава!$G$5=\"\",\"\",ВПА_застава!$G$5)","v":""},{"$f":"IF(ВПА_застава!$H$5=\"\",\"\",ВПА_застава!$H$5)","v":""}]
["Опис застави","Квартира; Полтавская обл., м. Лубни,  проул. Комсомольской дом.4 (30.3 кв. м.)",{"$f":"IF(ВПА_застава!$C$6=\"\",\"\",ВПА_застава!$C$6)","v":""},{"$f":"IF(ВПА_застава!$D$6=\"\",\"\",ВПА_застава!$D$6)","v":""},{"$f":"IF(ВПА_застава!$E$6=\"\",\"\",ВПА_застава!$E$6)","v":""},{"$f":"IF(ВПА_застава!$F$6=\"\",\"\",ВПА_застава!$F$6)","v":""},{"$f":"IF(ВПА_застава!$G$6=\"\",\"\",ВПА_застава!$G$6)","v":""},{"$f":"IF(ВПА_застава!$H$6=\"\",\"\",ВПА_застава!$H$6)","v":""}]
["Застава реалізована (так / ні)",{"$f":"IF(ВПА_застава!$B$2=\"Ні\",\"\",IF(ВПА_застава!$B$7=\"\",\"Н/Д\",ВПА_застава!$B$7))","v":"ні"},{"$f":"IF(ВПА_застава!$C$2=\"Ні\",\"\",IF(ВПА_застава!$C$7=\"\",\"Н/Д\",ВПА_застава!$C$7))","v":""},{"$f":"IF(ВПА_застава!$D$2=\"Ні\",\"\",IF(ВПА_застава!$D$7=\"\",\"Н/Д\",ВПА_застава!$D$7))","v":""},{"$f":"IF(ВПА_застава!$E$2=\"Ні\",\"\",IF(ВПА_застава!$E$7=\"\",\"Н/Д\",ВПА_застава!$E$7))","v":""},{"$f":"IF(ВПА_застава!$F$2=\"Ні\",\"\",IF(ВПА_застава!$F$7=\"\",\"Н/Д\",ВПА_застава!$F$7))","v":""},{"$f":"IF(ВПА_застава!$G$2=\"Ні\",\"\",IF(ВПА_застава!$G$7=\"\",\"Н/Д\",ВПА_застава!$G$7))","v":""},{"$f":"IF(ВПА_застава!$H$2=\"Ні\",\"\",IF(ВПА_застава!$H$7=\"\",\"Н/Д\",ВПА_застава!$H$7))","v":""}]
["Вартість застави на момент видачі кредиту, грн",{"$f":"ВПА_застава!B9","v":105545},{"$f":"IF(ВПА_застава!$C$2=\"Ні\",\"\",IF(ВПА_застава!$C$8=\"\",\"Н/Д\",ВПА_застава!$C$8))","v":""},{"$f":"IF(ВПА_застава!$D$2=\"Ні\",\"\",IF(ВПА_застава!$D$8=\"\",\"Н/Д\",ВПА_застава!$D$8))","v":""},{"$f":"IF(ВПА_застава!$E$2=\"Ні\",\"\",IF(ВПА_застава!$E$8=\"\",\"Н/Д\",ВПА_застава!$E$8))","v":""},{"$f":"IF(ВПА_застава!$F$2=\"Ні\",\"\",IF(ВПА_застава!$F$8=\"\",\"Н/Д\",ВПА_застава!$F$8))","v":""},{"$f":"IF(ВПА_застава!$G$2=\"Ні\",\"\",IF(ВПА_застава!$G$8=\"\",\"Н/Д\",ВПА_застава!$G$8))","v":""},{"$f":"IF(ВПА_застава!$H$2=\"Ні\",\"\",IF(ВПА_застава!$H$8=\"\",\"Н/Д\",ВПА_застава!$H$8))","v":""}]

{"sheet":"Методологічні рекомендації","index":7,"n_rows":25,"n_cols":2,"rows_kept":25,"cut":false,"hidden":true,"merged":[[0,0,0,1]]}
["Методологічні рекомендації до заповнення внутрішнього паспорту активу (індивідуальні позичальники)"]
[]
["Назва поля у ВПА","Рекомендації до заповнення"]
["Дата формування","Паспорт повинен бути заповнений станом на перше число поточного місяця"]
["Відповідальна особа","ПІБ, посада та контактний телефон"]
["Тип кредитного продукту","За власною класифікацією банку"]
["Цільове призначення","Споживче кредитування, готівка на особисті потреби, придбання житла на первинному ринку, придбання житла на вторинному ринку, ремонт житла, придбання земельних ділянок, споживче кредитування під заставу нерухомості тощо"]
["Оціночна вартість кредиту","За результатами останньої оцінки"]
["Дата оцінки вартості кредиту","Дата останньої оцінки"]
["Ліквідаційна вартість кредиту","Оціночна вартість кредиту на дату формування ліквідаційної маси"]
["Адреса реєстрації","формат: [індекс], [область], [район], [місто], [вулиця], [будинок], [корпус], [квартира]"]
["Адреса фактичного проживання","формат: [індекс], [область], [район], [місто], [вулиця], [будинок], [корпус], [квартира]"]
["Інформація про поручителя","Якщо поручитель один, то всю інформацію про нього вносимо безпосередньо у внутрішньому паспорті активу (лист \"ВПА\"). Якщо ж їх більше, ніж один, то інформацію про усіх поручителів вносимо на окремій сторінці (лист \"ВПА_порука\")"]
["Фінансово-майновий стан","Місце роботи та посада, доходи за останній рік, наявність інших активів тощо"]
["Характер зв`язку з боржником","Родина (чоловік/дружина, батько, мати, брат, сестра тощо), бізнес (співвласник, партнер), знайомий тощо"]
["Інформація про заставу","Якщо об`єкт застави один, то всю інформацію про нього вносимо безпосередньо у внутрішньому паспорті активу (лист \"ВПА\"). Якщо ж їх більше, ніж один, то інформацію про усі об`єкти вносимо на окремій сторінці (лист \"ВПА_застава\")"]
["Тип застави","Квартира, гараж, магазин, земельна ділянка, нежитлове приміщення, автомобіль тощо"]
["Детальний опис застави","Для квартири – адреса, загальна площа, кількість кімнат, ремонт, тип будинку; для земельної ділянки – адреса, площа, цільове призначення, наявність будівель тощо; для нежитлової нерухомості – адреса, площа, фізичний стан, характер використання; для автотранспорту - марка та модель, об’єм двигуна, пробіг, технічний стан, наявність дефектів тощо"]
["Дата останньої перевірки предмета застави","Дата останнього виїзду до місцезнаходження об`єкта застави, перевірки документів, оцінки фізичного стану. Обо`язкова наявність фотографій!"]
["Поточна стадія претензійно-позовної роботи","Позов до суду не подано, подано позов на боржника до суду, позов до банку, судове провадження, рішення суду на користь банку, рішення суду на користь боржника, виконавчий документ передано до ДВС, виконавче провадження, заставу реалізовано примосуво, виконавчий документ повернено без виконання тощо)"]
["Наявність оригіналу кредитного договору","З усіма додатками"]
["Наявність оригіналу договору застави","З усіма додатками"]
["Наявність оригіналу договору поруки","З усіма додатками"]
["Інша інформація та примітки","Будь-яка інша інформація про боржника (кредит), яка може мати істотне значення у процесі прийняття рішення щодо визначення ціни продажу активу або стратегії подальшої роботи з ним"]
["Публічний паспорт активу","Замінити інформацію, яка прямо ідентифікую боржника, поручителя чи предмет застави. Наприклад, у розділах \"3. Інформація про заставу\" (чи лист \"ППА_застава\") та \"6. Претензійно-позовна робота та примусове стягнення\"  ПІБ боржника слід замінити на \"Боржник\", ПІБ поручителя на \"Поручитель\", видалити у адресі номер квартири, якщо предметом застави є квартира, або номер будинку, якщо предметом застави є житловий будинок чи комерційна будівля тощо."]

{"sheet":"queries","index":8,"n_rows":16,"n_cols":2,"rows_kept":16,"cut":false,"hidden":true,"merged":[]}
["FIDO_HD.deals","select * from risk.risk_viw_deal_passport t where t.deal_b2_id=$deal_id$"]
["FIDO_HD.coll1","select * from(\nselect rownum nb, t.* \nfrom risk.risk_viw_coll_passport t where t.DEAL_B2_ID=$deal_id$\norder by t.COLL_DEAL_ID)tt\nwhere tt.nb=1"]
["FIDO_HD.coll2","select * from(\nselect rownum nb, t.* \nfrom risk.risk_viw_coll_passport t where t.DEAL_B2_ID=$deal_id$\norder by t.COLL_DEAL_ID)tt\nwhere tt.nb=2"]
["FIDO_HD.coll3","select * from(\nselect rownum nb, t.* \nfrom risk.risk_viw_coll_passport t where t.DEAL_B2_ID=$deal_id$\norder by t.COLL_DEAL_ID)tt\nwhere tt.nb=3"]
["FIDO_HD.coll4","select * from(\nselect rownum nb, t.* \nfrom risk.risk_viw_coll_passport t where t.DEAL_B2_ID=$deal_id$\norder by t.COLL_DEAL_ID)tt\nwhere tt.nb=4"]
["FIDO_HD.coll5","select * from(\nselect rownum nb, t.* \nfrom risk.risk_viw_coll_passport t where t.DEAL_B2_ID=$deal_id$\norder by t.COLL_DEAL_ID)tt\nwhere tt.nb=5"]
["FIDO_HD.coll6","select * from(\nselect rownum nb, t.* \nfrom risk.risk_viw_coll_passport t where t.DEAL_B2_ID=$deal_id$\norder by t.COLL_DEAL_ID)tt\nwhere tt.nb=6"]
["FIDO_HD.coll7","select * from(\nselect rownum nb, t.* \nfrom risk.risk_viw_coll_passport t where t.DEAL_B2_ID=$deal_id$\norder by t.COLL_DEAL_ID)tt\nwhere tt.nb=7"]
["FIDO_HD.guar1","select * from(\nselect rownum nb, t.* \nfrom risk.risk_viw_guar_passport t where t.DEAL_B2_ID=$deal_id$\norder by t.COLL_DEAL_ID)tt\nwhere tt.nb=1"]
["FIDO_HD.guar2","select * from(\nselect rownum nb, t.* \nfrom risk.risk_viw_guar_passport t where t.DEAL_B2_ID=$deal_id$\norder by t.COLL_DEAL_ID)tt\nwhere tt.nb=2"]
["FIDO_HD.guar3","select * from(\nselect rownum nb, t.* \nfrom risk.risk_viw_guar_passport t where t.DEAL_B2_ID=$deal_id$\norder by t.COLL_DEAL_ID)tt\nwhere tt.nb=3"]
["FIDO_HD.guar4","select * from(\nselect rownum nb, t.* \nfrom risk.risk_viw_guar_passport t where t.DEAL_B2_ID=$deal_id$\norder by t.COLL_DEAL_ID)tt\nwhere tt.nb=4"]
["FIDO_HD.guar5","select * from(\nselect rownum nb, t.* \nfrom risk.risk_viw_guar_passport t where t.DEAL_B2_ID=$deal_id$\norder by t.COLL_DEAL_ID)tt\nwhere tt.nb=5"]
["FIDO_HD.legalwork","select * from risk.risk_viw_passport_legalwork_ag t where t.DEAL_B2_ID=$deal_id$"]
["FIDO_HD.log","insert into risk.risk_passport_request_log(deal_b2_id, user_login) values($deal_id$,'$user_login$')"]
["FIDO_HD.deal_docs","select * from risk.risk_viw_passport_deal_doc t where t.DEAL_B2_ID=$deal_id$"]

{"sheet":"deal","index":9,"n_rows":2,"n_cols":42,"rows_kept":2,"cut":false,"hidden":true,"merged":[]}
["DEAL_B2_ID","DEAL_ID","ARCDATE","1","2","3","4","5","6","7","8","10","11","12","13","15","16","17","18","19","20","33","34","35","36","37","41","52","EST_COMPANY_NAME","EST_AMOUNT","EST_DATE","REST_AMOUNT_EST","REST_AMOUNT_LIQ","LIQ_AMOUNT","LIQ_DATE","LAST_PAYM_DATE","LAST_PAYM_AMOUNT","CURR_YEAR_PAYM_AMOUNT","PREV_YEAR_PAYM_AMOUNT","PAYM_AMOUNT_TOTAL","FEE_RATE","NBU_COLL"]
[3292572,9056485,"2017-10-01","ПУАТ «ФІДОБАНК»","300175",".254-в/43","2008-02-22","2028-02-21",840,18800,13,"Заставний","Споживчий","Полтавська область","Інше",300100.93,277127.07,22973.86,0,0,null,517,"Косенко Владислав Юрійович","3056912537","обл. Полтавська, р-н _, м. Лубни, вул. Комсомольська, буд. 44, кв. 11","обл. Полтавська, р-н _, м. Лубни, вул. Комсомольська, буд. 44, кв. 11","так","ні","ТОВ «Верітас Проперті Менеджмент»",62862.79,"2016-11-01",291363.08,291363.08,62862.79,"2016-11-01","2016-04-25",2,0,4.83,145857.81,0,"Ні"]

{"sheet":"coll1","index":10,"n_rows":2,"n_cols":15,"rows_kept":2,"cut":false,"hidden":true,"merged":[]}
["DEAL_ID","DEAL_B2_ID","42","43","44","45","49","50","51","COLL_DEAL_ID","COLL_DEAL_B2_ID","ARCDATE","DEAL_NO","SIMPLE_CODE","NB"]
[9056485,3292572,"Ні",3296627,"Нерухоме майно, що належить до житлового фонду","Квартира; Полтавская обл., м. Лубни,  проул. Комсомольской дом.4 (30.3 кв. м.)",null,"2016-02-01",120109,9066727,3296627,"2017-10-01",".254-в/43",".254-в/43_3296627",1]

{"sheet":"legalwork","index":11,"n_rows":2,"n_cols":15,"rows_kept":2,"cut":false,"hidden":true,"merged":[]}
["ARCDATE","DEAL_ID","DEAL_B2_ID","DEAL_NO","COLL_DEAL_ID","COLL_DEAL_B2_ID","LIMITATION_PERIOD_DATE","CUR_STAGE","STAGE_DESC","LEGAL_OPINION","PRE_TRIAL_AGR_FLAG","PRE_TRIAL_AGR_DESC","INTERNAL_DRS_WORK","EXTERNAL_DRS_WORK","SIMPLE_CODE"]
["2017-10-01 00:00:00 | 2017-10-01 00:00:00 | 2017-10-01 00:00:00","9056485 | 9056485 | 9056485",3292572,".254-в/43 | .254-в/43 | .254-в/43","9066727 | 9066727 | 9066727","3296627 | 3296627 | 3296627","3296627: 21.02.2031 | 3296627: Н/Д | 3296627: Н/Д","3296627: Справа у виконавчій службі | 3296627: Справа у виконавчій службі | 3296627: Справа у виконавчій службі","3296627: рішення набрало законної сили | 3296627: рішення набрало законної сили | 3296627: рішення набрало законної сили","3296627: Н/Д | 3296627: низький | 3296627: низький","3296627: - | 3296627: ні | 3296627: ні","3296627: не готовий | 3296627: не готовий | 3296627: не готовий","3296627: так | 3296627: так | 3296627: так","3296627: відсутня | 3296627: відсутня | 3296627: відсутня",".254-в/43_3296627 | .254-в/43_3296627 | .254-в/43_3296627"]

{"sheet":"deal_doc","index":12,"n_rows":2,"n_cols":8,"rows_kept":2,"cut":false,"hidden":true,"merged":[]}
["DEAL_B2_ID","DEAL_ID","CREDIT_CONTRACT","COLL_CONTRACT","GUARANTEE_CONTRACT","SPOUSE_AGR","CREDIT_STATEMENT","BORROWERS_PERMIT"]
[3292572,9056485]

{"sheet":"coll2","index":13,"n_rows":1,"n_cols":15,"rows_kept":1,"cut":false,"hidden":true,"merged":[]}
["ARCDATE","DEAL_ID","DEAL_B2_ID","DEAL_NO","COLL_DEAL_ID","COLL_DEAL_B2_ID","42","43","44","45","49","50","51","SIMPLE_CODE","NB"]

{"sheet":"coll3","index":14,"n_rows":1,"n_cols":15,"rows_kept":1,"cut":false,"hidden":true,"merged":[]}
["ARCDATE","DEAL_ID","DEAL_B2_ID","DEAL_NO","COLL_DEAL_ID","COLL_DEAL_B2_ID","42","43","44","45","49","50","51","SIMPLE_CODE","NB"]

{"sheet":"coll4","index":15,"n_rows":1,"n_cols":15,"rows_kept":1,"cut":false,"hidden":true,"merged":[]}
["ARCDATE","DEAL_ID","DEAL_B2_ID","DEAL_NO","COLL_DEAL_ID","COLL_DEAL_B2_ID","42","43","44","45","49","50","51","SIMPLE_CODE","NB"]

{"sheet":"coll5","index":16,"n_rows":1,"n_cols":15,"rows_kept":1,"cut":false,"hidden":true,"merged":[]}
["ARCDATE","DEAL_ID","DEAL_B2_ID","DEAL_NO","COLL_DEAL_ID","COLL_DEAL_B2_ID","42","43","44","45","49","50","51","SIMPLE_CODE","NB"]

{"sheet":"coll6","index":17,"n_rows":1,"n_cols":15,"rows_kept":1,"cut":false,"hidden":true,"merged":[]}
["ARCDATE","DEAL_ID","DEAL_B2_ID","DEAL_NO","COLL_DEAL_ID","COLL_DEAL_B2_ID","42","43","44","45","49","50","51","SIMPLE_CODE","NB"]

{"sheet":"coll7","index":18,"n_rows":1,"n_cols":15,"rows_kept":1,"cut":false,"hidden":true,"merged":[]}
["ARCDATE","DEAL_ID","DEAL_B2_ID","DEAL_NO","COLL_DEAL_ID","COLL_DEAL_B2_ID","42","43","44","45","49","50","51","SIMPLE_CODE","NB"]

{"sheet":"guar1","index":19,"n_rows":1,"n_cols":16,"rows_kept":1,"cut":false,"hidden":true,"merged":[]}
["DEAL_ID","DEAL_B2_ID","COLL_DEAL_ID","COLL_DEAL_B2_ID","43","45","53","54","55","56","57","58","59","ARCDATE","SIMPLE_CODE","NB"]

{"sheet":"guar2","index":20,"n_rows":1,"n_cols":16,"rows_kept":1,"cut":false,"hidden":true,"merged":[]}
["ARCDATE","DEAL_ID","DEAL_B2_ID","COLL_DEAL_ID","COLL_DEAL_B2_ID","43","45","53","54","55","56","57","58","59","SIMPLE_CODE","NB"]

{"sheet":"guar3","index":21,"n_rows":1,"n_cols":16,"rows_kept":1,"cut":false,"hidden":true,"merged":[]}
["ARCDATE","DEAL_ID","DEAL_B2_ID","COLL_DEAL_ID","COLL_DEAL_B2_ID","43","45","53","54","55","56","57","58","59","SIMPLE_CODE","NB"]

{"sheet":"guar4","index":22,"n_rows":1,"n_cols":16,"rows_kept":1,"cut":false,"hidden":true,"merged":[]}
["ARCDATE","DEAL_ID","DEAL_B2_ID","COLL_DEAL_ID","COLL_DEAL_B2_ID","43","45","53","54","55","56","57","58","59","SIMPLE_CODE","NB"]

{"sheet":"guar5","index":23,"n_rows":1,"n_cols":16,"rows_kept":1,"cut":false,"hidden":true,"merged":[]}
["ARCDATE","DEAL_ID","DEAL_B2_ID","COLL_DEAL_ID","COLL_DEAL_B2_ID","43","45","53","54","55","56","57","58","59","SIMPLE_CODE","NB"]

{"sheet":"фото","index":24,"n_rows":0,"n_cols":0,"rows_kept":0,"cut":false,"hidden":false,"merged":[]}

{"sheet":"журнал торгів","index":25,"n_rows":2,"n_cols":6,"rows_kept":2,"cut":false,"hidden":false,"merged":[[0,0,0,5]]}
["Журнал торгів"]
["№","Дата проведення","Торгуюча організація","Початкова вартість, грн","Ціна продажу, грн","Коментар"]